fUST/lending_fUST_20260103
["ID","MTS","AMOUNT","RATE_DAILY","PERIOD"]
[400328401,1767378632690,-162.67,0.00011388,2]
[400328402,1767378632701,-1278.44599485,0.0001152,2]
[400328403,1767378632710,-300.0,0.00011618,2]
[400328404,1767378632720,-5876.81759059,0.00011619,2]
[400328405,1767378632731,-156.85415381,0.00011887,2]
[400328406,1767378632740,-10000.0,0.00011887,2]
[400328407,1767378632750,-500.0,0.00011954,2]
[400328408,1767378632760,-1041.66666667,0.00012094,2]
[400328409,1767378632770,-500.0,0.00012161,2]
[400328410,1767378632779,-174.4260703,0.000122,2]
[400328411,1767378632789,-1354.38,0.00012294,2]
[400328412,1767378632799,-193.4950212,0.000123,2]
[400328413,1767378632808,-184.1677213,0.000123,2]
[400328414,1767378632818,-193.4950212,0.000123,2]
[400328415,1767378632828,-250.0,0.00012322,2]
[400328416,1767378632837,-151.0,0.00012322,2]
[400328417,1767378632848,-209.40437684,0.00012322,2]
[400328418,1767378632857,-250.0,0.00012322,2]
[400328419,1767378632867,-221.46627175,0.00012322,2]
[400328420,1767378632877,-193.31,0.00012329,2]
[400328421,1767378632887,-151.0,0.000125,2]
[400328422,1767378632897,-898.73177536,0.00012613,2]
[400328423,1767378632907,-1365.0,0.0001264,2]
[400328424,1767378632917,-416.0,0.0001264,2]
[400328425,1767378632926,-883.0,0.0001264,2]
[400328426,1767378632936,-239.942,0.0001264,2]
[400328427,1767378632945,-151.0,0.000127,2]
[400328428,1767378632955,-420.0,0.00012759,2]
[400328429,1767378632965,-223.73165443,0.00012799,2]
[400328430,1767378632974,-217.15233878,0.0001287,2]
[400328431,1767378632984,-166.0,0.0001287,2]
[400328432,1767378632994,-172.0,0.0001287,2]
[400328433,1767378633003,-2000.0,0.00012875,3]
[400328434,1767378633013,-2000.0,0.00012884,3]
[400328435,1767378633023,-2000.0,0.00012884,3]
[400328436,1767378633033,-684.03508502,0.00012884,3]
[400328437,1767378633047,-446.83100132,0.00012884,3]
[400328438,1767378633073,-373.11910904,0.00012884,3]
[400328457,1767378638298,-253.51911545,0.00012017,2]
[400328458,1767378638352,-2520.04878974,0.00012017,2]
[400328459,1767378638362,-574.12855637,0.00012322,2]
[400328460,1767378638372,-2876.18991768,0.00012565,2]
[400328461,1767378638388,-595.37131296,0.0001287,2]
[400328462,1767378638398,-365.747745,0.00012884,3]
[400328495,1767378640488,-130.26705962,0.00012884,3]
[400328497,1767378640498,-304.7919169,0.00012884,3]
[400328499,1767378640509,-574.75499537,0.00012884,3]
[400329125,1767378646462,-1120.45308773,0.00012884,3]
[400329127,1767378646472,-1342.14360467,0.00012884,3]
[400329280,1767378910604,161.0,0.00027469,120]
[400329290,1767379064381,430.46124108,0.00012,10]
[400329322,1767379291701,2489.62935365,0.00028767,120]
[400329325,1767379384506,-579.0,0.0001128,2]
[400329411,1767379832557,-181.33640194,0.00011288,2]
[400329413,1767379832567,-162.67,0.0001129,2]
[400329414,1767379832580,-662.71,0.0001132,2]
[400329415,1767379832590,-2919.9465729,0.00011518,2]
[400329416,1767379832600,-300.0,0.00011518,2]
[400329417,1767379832610,-500.0,0.00011954,2]
[400329418,1767379832620,-1041.66666667,0.00012021,2]
[400329419,1767379832630,-2773.56790519,0.00012174,2]
[400329420,1767379832639,-500.0,0.0001227,2]
[400329421,1767379832649,-574.12855637,0.00012322,2]
[400329422,1767379832659,-209.40437684,0.00012322,2]
[400329423,1767379832670,-844.57,0.00012329,2]
[400329424,1767379832680,-500.0,0.00012407,2]
[400329425,1767379832690,-1325.41,0.00012431,2]
[400329426,1767379832700,-500.0,0.00012544,2]
[400329427,1767379832710,-172.11828201,0.00012544,2]
[400329428,1767379832720,-150.742,0.00012545,2]
[400329429,1767379832730,-416.0,0.00012545,2]
[400329430,1767379832740,-184.2417993,0.00012547,2]
[400329431,1767379832897,-184.2417993,0.00012547,2]
[400329432,1767379832908,-184.2417993,0.00012547,2]
[400329433,1767379832919,-599.1545169,0.00012613,2]
[400329434,1767379832930,-420.0,0.0001265,2]
[400329435,1767379832942,-500.0,0.00012681,2]
[400329436,1767379832954,-194.50886191,0.00012681,2]
[400329437,1767379832967,-2876.18991768,0.00012722,2]
[400329438,1767379832977,-200.48922017,0.00012788,2]
[400329439,1767379832987,-360.51971571,0.00012788,2]
[400329440,1767379832999,-800.0,0.00012812,2]
[400329441,1767379833014,-800.0,0.00012814,2]
[400329442,1767379833030,-500.0,0.00012818,2]
[400329443,1767379833040,-800.0,0.00012819,2]
[400329444,1767379833050,-800.0,0.00012853,2]
[400329445,1767379833060,-800.0,0.00012858,2]
[400329446,1767379833071,-595.37131296,0.0001287,2]
[400329447,1767379833080,-217.15233878,0.0001287,2]
[400329448,1767379833090,-2000.0,0.00012875,3]
[400329449,1767379833103,-657.85639533,0.00012884,3]
[400329450,1767379833113,-2000.0,0.00012884,3]
[400329451,1767379833122,-2000.0,0.00012893,3]
[400329452,1767379833132,-2000.0,0.00012893,3]
[400329453,1767379833143,-2000.0,0.00012893,3]
[400329454,1767379833153,-2000.0,0.00012893,3]
[400329455,1767379833163,-2000.0,0.00012893,3]
[400329456,1767379833173,-2000.0,0.00012893,3]
[400329457,1767379833183,-875.0,0.00012893,2]
[400329458,1767379833193,-151.0,0.000129,2]
[400329459,1767379833204,-151.0,0.000129,2]
[400329460,1767379833214,-469.11,0.000129,2]
[400329461,1767379833224,-500.0,0.00012955,2]
[400329462,1767379833234,-800.0,0.00012991,2]
[400329463,1767379833247,-400.000001,0.00013,2]
[400329464,1767379833258,-500.0,0.00013,2]
[400329465,1767379833272,-800.0,0.00013009,2]
[400329466,1767379833282,-800.0,0.00013028,2]
[400329467,1767379833291,-800.0,0.00013038,2]
[400329468,1767379833302,-500.0,0.00013092,2]
[400329469,1767379833312,-151.0,0.000131,2]
[400329470,1767379833322,-151.0,0.000132,2]
[400329471,1767379833332,-500.0,0.00013229,2]
[400329472,1767379833342,-459.35685689,0.0001327,2]
[400329473,1767379833352,-500.0,0.00013273,2]
[400329474,1767379833362,-500.0,0.00013273,2]
[400329475,1767379833371,-500.0,0.00013273,2]
[400329476,1767379833380,-500.0,0.00013273,2]
[400329477,1767379833390,-500.0,0.00013273,2]
[400329478,1767379833399,-500.0,0.00013273,2]
[400329479,1767379833409,-500.0,0.00013273,2]
[400329480,1767379833419,-500.0,0.00013273,2]
[400329481,1767379833430,-500.0,0.00013273,2]
[400329482,1767379833440,-500.0,0.00013273,2]
[400329483,1767379833450,-500.0,0.00013273,2]
[400329484,1767379833460,-500.0,0.00013273,2]
[400329485,1767379833470,-501.87840663,0.00013273,2]
[400329486,1767379833480,-500.0,0.00013273,2]
[400329487,1767379833490,-500.0,0.00013273,2]
[400329488,1767379833500,-500.0,0.00013273,2]
[400329489,1767379833511,-500.0,0.00013273,2]
[400329490,1767379833521,-500.0,0.00013273,2]
[400329491,1767379833530,-500.0,0.00013273,2]
[400329492,1767379833540,-271.74625638,0.00013273,2]
[400329493,1767379833550,-250.580292,0.00013273,2]
[400329494,1767379833560,-250.580292,0.00013273,2]
[400329495,1767379833570,-250.580292,0.00013273,2]
[400329496,1767379833580,-250.580292,0.00013273,2]
[400329497,1767379833590,-213.97695429,0.00013288,2]
[400329498,1767379833600,-151.0,0.000133,2]
[400329499,1767379833610,-151.0,0.000133,2]
[400329500,1767379833621,-500.0,0.00013324,2]
[400329501,1767379833631,-500.0,0.00013366,2]
[400329502,1767379833640,-339.17385447,0.0001338,2]
[400329503,1767379833650,-617.40005154,0.00013418,2]
[400329504,1767379833660,-225.18697532,0.00013418,2]
[400329505,1767379833670,-1988.12,0.00013467,2]
[400329506,1767379833680,-300.0,0.000135,3]
[400329507,1767379833689,-151.0,0.000135,2]
[400329508,1767379833699,-151.0,0.000135,2]
[400329509,1767379833708,-603.97734169,0.000135,2]
[400329510,1767379833718,-151.0,0.000135,2]
[400329511,1767379833727,-500.0,0.00013503,2]
[400329512,1767379833737,-500.0,0.00013595,2]
[400329513,1767379833747,-178.28951542,0.00013595,2]
[400329514,1767379833756,-500.0,0.00013595,2]
[400329515,1767379833770,-500.0,0.00013595,2]
[400329516,1767379833781,-380.54980418,0.00013595,2]
[400329517,1767379833790,-500.0,0.00013595,2]
[400329518,1767379833799,-500.0,0.00013595,2]
[400329519,1767379833809,-364.42477043,0.00013595,2]
[400329520,1767379833819,-500.0,0.00013595,2]
[400329521,1767379833828,-500.0,0.00013595,2]
[400329522,1767379833838,-10000.0,0.00013596,2]
[400329523,1767379833847,-117389.86469095,0.00013598,2]
[400329544,1767379838646,-262.0,0.00012892,2]
[400329546,1767379838656,-500.0,0.00012892,2]
[400329548,1767379838667,-500.0,0.00012892,2]
[400329550,1767379838678,-500.0,0.00012892,2]
[400329552,1767379838688,-500.0,0.00012892,2]
[400329554,1767379838698,-500.0,0.00012892,2]
[400329556,1767379838709,-500.0,0.00012892,2]
[400329558,1767379838719,-500.0,0.00012892,2]
[400329560,1767379838729,-500.0,0.00012892,2]
[400329562,1767379838739,-484.4069824,0.00012892,2]
[400329564,1767379838750,-15.5930176,0.00012892,2]
[400329566,1767379838760,-500.0,0.00012892,2]
[400329568,1767379838773,-500.0,0.00012892,2]
[400329570,1767379838783,-500.0,0.00012892,2]
[400329572,1767379838792,-500.0,0.00012892,2]
[400329574,1767379838802,-500.0,0.00012892,2]
[400329576,1767379838812,-500.0,0.00012892,2]
[400329578,1767379838821,-500.0,0.00012892,2]
[400329580,1767379838830,-563.93671545,0.00012892,2]
[400329582,1767379838840,-500.0,0.00012892,2]
[400329584,1767379838850,-500.0,0.00012892,2]
[400329585,1767379838859,-500.0,0.00012892,2]
[400329587,1767379838870,-500.0,0.00012892,2]
[400329589,1767379838879,-500.0,0.00013595,2]
[400329591,1767379838888,-500.0,0.00013595,2]
[400329593,1767379838898,-4446.01961364,0.00013598,2]
[400329595,1767379838911,-13513.47320088,0.00013598,2]
[400329598,1767379838931,-3455.61292438,0.00013598,2]
[400330175,1767379844825,-8758.22371993,0.00013598,2]
[400330241,1767379845452,-1530.06450387,0.00013598,2]
[400330452,1767379903999,162.67,0.00011192,2]
[400330490,1767380147700,1354.97,0.00011199,2]
[400330500,1767380199806,3293.36,0.00010419,2]
[400330639,1767380783942,300.0,0.0002876,120]
[400330648,1767380880142,363.28,8.238e-05,2]
[400330649,1767380880447,363.28,8.238e-05,2]
[400330741,1767381031583,-5000.0,0.00010314,2]
[400330742,1767381031593,-300.0,0.00010418,2]
[400330743,1767381031604,-223.70225549,0.00010418,2]
[400330744,1767381031614,-60130.5640922,0.00010419,2]
[400330745,1767381031624,-1337.72,0.00010713,2]
[400330746,1767381031635,-452.38948008,0.00011133,2]
[400330747,1767381031644,-2675.44,0.00011223,2]
[400330748,1767381031653,-1979.39617456,0.00011355,2]
[400330749,1767381031662,-151.0,0.000114,2]
[400330750,1767381031672,-42347.4121303,0.00011416,2]
[400330751,1767381031780,-420.0,0.00011455,2]
[400330752,1767381031791,-151.0,0.000116,2]
[400330753,1767381031801,-4013.16,0.00011733,2]
[400330754,1767381031810,-151.0,0.000119,2]
[400330755,1767381031820,-1979.39617452,0.00011916,2]
[400330756,1767381031829,-500.0,0.00011954,2]
[400330757,1767381031838,-1041.66666667,0.00012026,2]
[400330758,1767381031848,-151.0,0.000121,2]
[400330759,1767381031857,-5350.88,0.00012243,2]
[400330760,1767381031866,-200.464234,0.00012243,2]
[400330761,1767381031875,-200.464234,0.00012243,2]
[400330762,1767381031885,-200.464234,0.00012243,2]
[400330763,1767381031895,-200.464234,0.00012243,2]
[400330764,1767381031904,-151.0,0.000123,2]
[400330765,1767381031914,-500.0,0.00012329,2]
[400330766,1767381031923,-500.0,0.00012329,2]
[400330767,1767381031932,-173.77074616,0.00012329,2]
[400330768,1767381031941,-209.40437684,0.00012331,2]
[400330769,1767381031951,-574.12855637,0.00012331,2]
[400330770,1767381031960,-263.96866147,0.00012418,2]
[400330771,1767381031969,-1979.39617452,0.00012477,2]
[400330772,1767381031978,-587.0,0.00012495,2]
[400330773,1767381031988,-158.33,0.00012495,2]
[400330774,1767381031997,-158.33,0.00012495,2]
[400330775,1767381032007,-158.33,0.00012495,2]
[400330776,1767381032016,-158.33,0.00012495,2]
[400330777,1767381032026,-158.33,0.00012495,2]
[400330778,1767381032035,-158.33,0.00012495,2]
[400330779,1767381032045,-158.33,0.00012495,2]
[400330780,1767381032055,-587.0,0.00012595,2]
[400330781,1767381032065,-151.0,0.000126,2]
[400330782,1767381032074,-250.0,0.00012617,2]
[400330783,1767381032083,-883.0,0.00012617,2]
[400330784,1767381032102,-239.942,0.00012617,2]
[400330785,1767381032112,-416.0,0.00012617,2]
[400330786,1767381032122,-6688.6,0.00012753,2]
[400330787,1767381032133,-200.464234,0.00012753,2]
[400330788,1767381032142,-200.464234,0.00012753,2]
[400330789,1767381032152,-200.464234,0.00012753,2]
[400330790,1767381032163,-200.464234,0.00012753,2]
[400330791,1767381032174,-151.0,0.000128,2]
[400330792,1767381032183,-217.15233878,0.00012879,2]
[400330793,1767381032193,-595.37131296,0.00012879,2]
[400330794,1767381032203,-2000.0,0.00012893,3]
[400330795,1767381032213,-1985.15632486,0.00012893,3]
[400330796,1767381032222,-397.03126498,0.00012893,3]
[400330797,1767381032233,-200.464234,0.000129,2]
[400330798,1767381032242,-200.464234,0.000129,2]
[400330799,1767381032252,-200.464234,0.000129,2]
[400330800,1767381032261,-200.464234,0.000129,2]
[400330801,1767381032271,-151.0,0.00013,2]
[400330802,1767381032280,-151.0,0.00013,2]
[400330803,1767381032290,-1979.39617452,0.00013038,2]
[400330804,1767381032299,-500.0,0.00013038,2]
[400330805,1767381032310,-162.67,0.00013069,2]
[400330806,1767381032320,-800.0,0.00013169,2]
[400330807,1767381032330,-151.0,0.000132,2]
[400330808,1767381032339,-151.0,0.000132,2]
[400330809,1767381032352,-500.0,0.00013229,2]
[400330810,1767381032361,-800.0,0.00013236,2]
[400330811,1767381032371,-647.0,0.00013259,2]
[400330812,1767381032381,-200.0,0.00013262,2]
[400330813,1767381032391,-8026.32,0.00013263,2]
[400330814,1767381032400,-647.0,0.00013264,2]
[400330815,1767381032411,-500.0,0.00013273,2]
[400330816,1767381032421,-556.87906344,0.00013273,2]
[400330817,1767381032431,-500.0,0.00013273,2]
[400330818,1767381032440,-500.0,0.00013273,2]
[400330819,1767381032451,-500.0,0.00013273,2]
[400330820,1767381032462,-500.0,0.00013273,2]
[400330821,1767381032472,-500.0,0.00013273,2]
[400330822,1767381032482,-500.0,0.00013273,2]
[400330823,1767381032491,-500.0,0.00013273,2]
[400330824,1767381032500,-500.0,0.00013273,2]
[400330825,1767381032510,-500.0,0.00013273,2]
[400330826,1767381032520,-500.0,0.00013273,2]
[400330827,1767381032529,-500.0,0.00013273,2]
[400330828,1767381032539,-500.0,0.00013273,2]
[400330829,1767381032548,-500.35649474,0.00013273,2]
[400330830,1767381032558,-500.0,0.00013273,2]
[400330831,1767381032567,-500.0,0.00013273,2]
[400330832,1767381032577,-500.0,0.00013273,2]
[400330833,1767381032587,-500.0,0.00013273,2]
[400330834,1767381032600,-500.0,0.00013273,2]
[400330835,1767381032610,-500.0,0.00013273,2]
[400330836,1767381032620,-500.0,0.00013273,2]
[400330837,1767381032629,-200.464234,0.00013273,2]
[400330838,1767381032638,-200.464234,0.00013273,2]
[400330839,1767381032648,-200.464234,0.00013273,2]
[400330840,1767381032658,-200.464234,0.00013273,2]
[400330841,1767381032667,-600.0,0.00013282,2]
[400330842,1767381032676,-564.51499178,0.00013312,2]
[400330843,1767381032686,-647.0,0.00013323,2]
[400330844,1767381032695,-399.4363446,0.00013326,2]
[400330845,1767381032704,-647.0,0.00013348,2]
[400330846,1767381032715,-500.0,0.00013366,2]
[400330847,1767381032724,-800.0,0.00013375,2]
[400330849,1767381032734,-225.18697532,0.00013427,2]
[400330850,1767381032744,-617.40005154,0.00013427,2]
[400330851,1767381032754,-800.0,0.00013428,2]
[400330852,1767381032763,-200.464234,0.00013428,2]
[400330853,1767381032773,-200.464234,0.00013428,2]
[400330854,1767381032783,-200.464234,0.00013428,2]
[400330855,1767381032794,-200.464235,0.00013428,2]
[400330856,1767381032803,-369.29005934,0.00013438,2]
[400330857,1767381032813,-349.61792861,0.00013438,2]
[400330858,1767381032824,-399.56334698,0.00013438,2]
[400330859,1767381032834,-624.31772966,0.00013438,2]
[400330860,1767381032843,-898.11851318,0.00013438,2]
[400330862,1767381032853,-218.09100846,0.00013438,2]
[400330863,1767381032862,-249.24686682,0.00013438,2]
[400330864,1767381032874,-389.05878117,0.00013438,2]
[400330865,1767381032884,-79935.23963106,0.00013453,2]
[400330866,1767381032894,-151.0,0.000135,2]
[400330867,1767381032904,-151.0,0.000135,2]
[400330868,1767381032915,-500.0,0.00013503,2]
[400330869,1767381032924,-10000.0,0.0001354,2]
[400330870,1767381032934,-647.0,0.00013545,2]
[400330871,1767381032947,-7048.8426411,0.00013553,2]
[400330872,1767381032957,-1979.39617452,0.00013599,2]
[400330874,1767381032967,-647.0,0.00013608,2]
[400330875,1767381032977,-376.5396692,0.00013613,2]
[400330876,1767381032988,-376.5396692,0.00013613,2]
[400330877,1767381032998,-376.5396692,0.00013613,2]
[400330878,1767381033008,-376.5396692,0.00013613,2]
[400330879,1767381033019,-376.5396692,0.00013613,2]
[400330880,1767381033028,-376.5396692,0.00013613,2]
[400330881,1767381033038,-376.5396692,0.00013613,2]
[400330882,1767381033048,-376.5396692,0.00013613,2]
[400330883,1767381033058,-266.00072349,0.0001364,2]
[400330884,1767381033067,-300.0,0.00013673,2]
[400330885,1767381033077,-647.0,0.00013691,2]
[400330886,1767381033086,-580.76,0.00013698,2]
[400330887,1767381033095,-557.82,0.00013698,2]
[400330888,1767381033105,-557.82,0.00013698,2]
[400330889,1767381033115,-557.82,0.00013698,2]
[400330890,1767381033125,-557.82,0.00013698,2]
[400330891,1767381033134,-557.82,0.00013698,2]
[400330892,1767381033143,-557.82,0.00013698,2]
[400330893,1767381033153,-557.82,0.00013698,2]
[400330894,1767381033162,-557.82,0.00013698,2]
[400330895,1767381033273,-557.82,0.00013698,2]
[400330896,1767381033285,-557.82,0.00013698,2]
[400330897,1767381033295,-557.82,0.00013698,2]
[400330898,1767381033304,-557.82,0.00013698,2]
[400330899,1767381033314,-557.82,0.00013698,2]
[400330900,1767381033324,-557.82,0.00013698,2]
[400330901,1767381033333,-557.82,0.00013698,2]
[400330902,1767381033345,-557.82,0.00013698,2]
[400330903,1767381033357,-557.82,0.00013698,2]
[400330904,1767381033366,-557.82,0.00013698,2]
[400330905,1767381033375,-557.82,0.00013698,2]
[400330906,1767381033385,-557.82,0.00013698,2]
[400330907,1767381033394,-557.82,0.00013698,2]
[400330908,1767381033404,-557.82,0.00013698,2]
[400330909,1767381033413,-557.82,0.00013698,2]
[400330910,1767381033424,-557.85289589,0.00013698,2]
[400330911,1767381033434,-290.82034444,0.00013698,2]
[400330912,1767381033444,-568.64,0.00013698,2]
[400330913,1767381033453,-568.64,0.00013698,2]
[400330914,1767381033463,-568.64,0.00013698,2]
[400330915,1767381033472,-568.64,0.00013698,2]
[400330916,1767381033481,-568.64,0.00013698,2]
[400330917,1767381033491,-568.64,0.00013698,2]
[400330918,1767381033500,-568.64,0.00013698,2]
[400330919,1767381033509,-568.64,0.00013698,2]
[400330920,1767381033519,-568.64,0.00013698,2]
[400330921,1767381033528,-811.84,0.00013698,2]
[400330922,1767381033538,-568.64,0.00013698,2]
[400330923,1767381033547,-568.64,0.00013698,2]
[400330924,1767381033557,-568.64,0.00013698,2]
[400330925,1767381033566,-811.84,0.00013698,2]
[400330926,1767381033576,-568.64,0.00013698,2]
[400330927,1767381033585,-811.84,0.00013698,2]
[400330928,1767381033595,-568.64,0.00013698,2]
[400330929,1767381033605,-811.84,0.00013698,2]
[400330930,1767381033615,-568.64,0.00013698,2]
[400330931,1767381033624,-811.84,0.00013698,2]
[400330932,1767381033633,-568.64,0.00013698,2]
[400330933,1767381033642,-811.84,0.00013698,2]
[400330934,1767381033652,-568.64,0.00013698,2]
[400330935,1767381033662,-811.84,0.00013698,2]
[400330936,1767381033671,-568.64,0.00013698,2]
[400330937,1767381033680,-811.84,0.00013698,2]
[400330938,1767381033690,-568.64,0.00013698,2]
[400330939,1767381033700,-811.84,0.00013698,2]
[400330940,1767381033711,-568.64,0.00013698,2]
[400330941,1767381033721,-811.84,0.00013698,2]
[400330942,1767381033731,-811.84,0.00013698,2]
[400330943,1767381033740,-811.84,0.00013698,2]
[400330944,1767381033750,-568.64,0.00013698,2]
[400330945,1767381033760,-811.84,0.00013698,2]
[400330946,1767381033769,-568.64,0.00013698,2]
[400330947,1767381033778,-811.84,0.00013698,2]
[400330948,1767381033788,-568.64,0.00013698,2]
[400330949,1767381033799,-568.87158857,0.00013698,2]
[400330950,1767381033808,-811.84,0.00013698,2]
[400330951,1767381033818,-811.84,0.00013698,2]
[400330952,1767381033828,-811.84,0.00013698,2]
[400330953,1767381033837,-811.84,0.00013698,2]
[400330954,1767381033846,-811.84,0.00013698,2]
[400330955,1767381033857,-811.84,0.00013698,2]
[400330956,1767381033866,-811.84,0.00013698,2]
[400330957,1767381033875,-811.84,0.00013698,2]
[400330958,1767381033885,-811.84,0.00013698,2]
[400330959,1767381033894,-811.92442673,0.00013698,2]
[400330960,1767381033903,-3510.39,0.00013698,2]
[400330961,1767381033912,-3510.39,0.00013698,2]
[400330962,1767381033922,-3510.39,0.00013698,2]
[400330963,1767381033942,-3510.39,0.00013698,2]
[400330964,1767381033953,-3510.39,0.00013698,2]
[400330965,1767381033962,-3510.39,0.00013698,2]
[400330966,1767381033971,-3510.39,0.00013698,2]
[400330967,1767381033981,-3510.39,0.00013698,2]
[400330968,1767381033991,-3510.39,0.00013698,2]
[400330969,1767381034000,-3510.39,0.00013698,2]
[400330970,1767381034010,-3510.39,0.00013698,2]
[400330971,1767381034020,-3510.39,0.00013698,2]
[400330972,1767381034030,-3510.39,0.00013698,2]
[400330973,1767381034039,-3510.39,0.00013698,2]
[400330974,1767381034050,-3510.39,0.00013698,2]
[400330975,1767381034061,-3510.39,0.00013698,2]
[400330976,1767381034071,-3510.39,0.00013698,2]
[400330977,1767381034082,-3510.39,0.00013698,2]
[400330978,1767381034091,-3510.39,0.00013698,2]
[400330979,1767381034102,-3510.39,0.00013698,2]
[400330980,1767381034111,-3510.39,0.00013698,2]
[400330981,1767381034120,-3510.39,0.00013698,2]
[400330982,1767381034130,-3510.39,0.00013698,2]
[400330983,1767381034140,-3510.46251885,0.00013698,2]
[400330984,1767381034150,-500.0,0.00013698,2]
[400330985,1767381034162,-1000.0,0.00013699,2]
[400330986,1767381034172,-1172.233109,0.00013699,2]
[400330987,1767381034182,-190505.9787602,0.00013699,2]
[400330988,1767381034193,-3446.506524,0.00013699,2]
[400330989,1767381034202,-183.818816,0.00013699,2]
[400330990,1767381034212,-183.818816,0.00013699,2]
[400330991,1767381034221,-183.818816,0.00013699,2]
[400330992,1767381034231,-183.818816,0.00013699,2]
[400330993,1767381034240,-183.818816,0.00013699,2]
[400330994,1767381034251,-183.818816,0.00013699,2]
[400330995,1767381034261,-183.818816,0.00013699,2]
[400330996,1767381034271,-183.818816,0.00013699,2]
[400330997,1767381034281,-183.818816,0.00013699,2]
[400330998,1767381034291,-183.818816,0.00013699,2]
[400330999,1767381034301,-183.818816,0.00013699,2]
[400331000,1767381034310,-183.818816,0.00013699,2]
[400331001,1767381034320,-183.818816,0.00013699,2]
[400331002,1767381034329,-183.818816,0.00013699,2]
[400331003,1767381034339,-183.818816,0.00013699,2]
[400331004,1767381034351,-183.818816,0.00013699,2]
[400331005,1767381034361,-183.818816,0.00013699,2]
[400331006,1767381034370,-183.818816,0.00013699,2]
[400331007,1767381034380,-183.818816,0.00013699,2]
[400331008,1767381034390,-183.818821,0.00013699,2]
[400331009,1767381034400,-151.0,0.00013699,2]
[400331010,1767381034410,-151.0,0.00013699,2]
[400331011,1767381034420,-500.0,0.00013699,2]
[400331012,1767381034430,-500.0,0.00013699,2]
[400331013,1767381034440,-500.0,0.00013699,2]
[400331014,1767381034450,-500.0,0.00013699,2]
[400331015,1767381034459,-500.0,0.00013699,2]
[400331016,1767381034468,-500.0,0.00013699,2]
[400331017,1767381034478,-500.0,0.00013699,2]
[400331018,1767381034487,-500.0,0.00013699,2]
[400331019,1767381034497,-500.0,0.00013699,2]
[400331020,1767381034507,-500.0,0.00013699,2]
[400331021,1767381034517,-500.0,0.00013699,2]
[400331022,1767381034528,-500.0,0.00013699,2]
[400331023,1767381034538,-500.0,0.00013699,2]
[400331024,1767381034549,-500.0,0.00013699,2]
[400331025,1767381034559,-500.0,0.00013699,2]
[400331026,1767381034668,-258.41989131,0.00013699,2]
[400331027,1767381034677,-500.0,0.00013699,2]
[400331028,1767381034686,-500.0,0.00013699,2]
[400331029,1767381034695,-500.0,0.00013699,2]
[400331030,1767381034704,-500.0,0.00013699,2]
[400331031,1767381034713,-500.0,0.00013699,2]
[400331032,1767381034722,-158.43225412,0.00013699,2]
[400331033,1767381034730,-500.0,0.00013699,2]
[400331034,1767381034740,-500.0,0.00013699,2]
[400331035,1767381034749,-500.0,0.00013699,2]
[400331036,1767381034758,-500.0,0.00013699,2]
[400331037,1767381034767,-500.0,0.00013699,2]
[400331038,1767381034777,-500.0,0.00013699,2]
[400331039,1767381034787,-500.0,0.00013699,2]
[400331040,1767381034796,-500.0,0.00013699,2]
[400331041,1767381034805,-500.0,0.00013699,2]
[400331042,1767381034814,-500.0,0.00013699,2]